bitfinex/quotes_BTCUSD_20250907
["timestamp","ask_amount","ask_price","bid_price","bid_amount"]
[1757204821599,0.76536353,110310.0,110300.0,0.25]
[1757204821821,0.76537169,110310.0,110300.0,0.25]
[1757204822240,0.76537169,110310.0,110300.0,0.40012]
[1757204822689,0.76537169,110310.0,110300.0,0.25]
[1757204822900,0.76537169,110310.0,110300.0,0.40012]
[1757204823100,0.76537169,110310.0,110300.0,0.25]
[1757204823353,0.76537169,110310.0,110300.0,0.40012]
[1757204823534,0.76537169,110310.0,110300.0,0.25]
[1757204823739,0.76537169,110310.0,110300.0,0.40012]
[1757204847215,0.76537169,110310.0,110300.0,0.25]
[1757204847419,0.76537169,110310.0,110300.0,0.40008]
[1757204859544,0.76537169,110310.0,110300.0,0.25]
[1757204859754,0.76537169,110310.0,110300.0,0.40008]
[1757204863051,0.18132366,110300.0,110290.0,0.03027299]
[1757204863262,0.52132366,110300.0,110290.0,0.15313]
[1757204863470,0.54090214,110300.0,110290.0,0.15313]
[1757204863684,0.56812845,110300.0,110290.0,0.15313]
[1757204864532,0.56812845,110300.0,110290.0,0.15413]
[1757204864911,0.56812845,110300.0,110290.0,0.15513]
[1757204865498,0.71820845,110300.0,110290.0,0.15513]
[1757204872882,0.71820845,110300.0,110290.0,0.15728]
[1757204878051,0.71820845,110300.0,110290.0,0.15732]
[1757204879007,0.56812845,110300.0,110290.0,0.15732]
[1757204879204,0.71824845,110300.0,110290.0,0.15732]
[1757204892979,0.71824845,110300.0,110290.0,0.0072]
[1757204897843,0.71824452,110300.0,110290.0,0.0072]
[1757204910078,0.7159144,110300.0,110290.0,0.0072]
[1757204934155,0.37824845,110300.0,110290.0,0.0072]
[1757204934329,0.35866997,110300.0,110290.0,0.0072]
[1757204936186,0.69866997,110300.0,110290.0,0.0072]
[1757204936391,0.71824845,110300.0,110290.0,0.0072]
[1757204955730,0.71820845,110300.0,110290.0,0.0072]
[1757204956555,0.56812845,110300.0,110290.0,0.0072]
[1757204956778,0.71820845,110300.0,110290.0,0.0072]
[1757204958086,0.56812845,110300.0,110290.0,0.0072]
[1757204958312,0.71820845,110300.0,110290.0,0.0072]
[1757204962583,0.67794112,110300.0,110290.0,0.0072]
[1757204962788,0.70516743,110300.0,110290.0,0.0072]
[1757204967692,0.55508743,110300.0,110290.0,0.0072]
[1757204968117,0.70516743,110300.0,110290.0,0.0072]
[1757204970841,0.70516743,110300.0,110290.0,0.00505]
[1757204979907,0.70516743,110300.0,110290.0,0.002]
[1757204985613,0.37820845,110300.0,110290.0,0.002]
[1757205000787,0.37820845,110300.0,110290.0,0.00521]
[1757205001920,0.1813401,110290.0,110280.0,0.0272263]
[1757205002332,0.1833701,110290.0,110280.0,0.0272263]
[1757205002802,0.18137299,110270.0,110260.0,0.57101882]
[1757205003003,0.18137299,110270.0,110260.0,0.66507481]
[1757205003242,0.18137299,110270.0,110260.0,0.6923042]
[1757205003956,0.18137299,110270.0,110260.0,0.69556101]
[1757205004820,0.18137299,110270.0,110260.0,0.69856101]
[1757205005229,0.18137299,110270.0,110260.0,0.70356101]
[1757205007781,0.18137299,110270.0,110260.0,0.30356101]
[1757205025844,0.15967433,110280.0,110260.0,0.30356101]
[1757205026041,0.18137299,110270.0,110260.0,0.30035101]
[1757205026793,0.18137299,110270.0,110260.0,0.30053101]
[1757205027272,0.18137299,110270.0,110260.0,0.30353101]
[1757205027790,0.18137299,110270.0,110260.0,0.30053101]
[1757205027996,0.18137299,110270.0,110260.0,0.30353101]
[1757205036188,0.18137299,110270.0,110260.0,0.28259219]
[1757205037064,0.18137299,110270.0,110260.0,0.27959219]
[1757205037264,0.52137299,110270.0,110260.0,0.16244681]
[1757205037472,0.54095147,110270.0,110260.0,0.16244681]
[1757205037843,0.54298147,110270.0,110260.0,0.16044681]
[1757205038273,0.54298147,110270.0,110260.0,0.15744681]
[1757205038691,0.54298147,110270.0,110260.0,0.16144681]
[1757205038896,0.54298147,110270.0,110260.0,0.15744681]
[1757205039303,0.54298147,110270.0,110260.0,0.16044681]
[1757205040102,0.54298147,110270.0,110260.0,0.15844681]
[1757205040942,0.54298147,110270.0,110260.0,0.15944681]
[1757205042866,0.54298147,110270.0,110260.0,0.15412681]
[1757205045028,0.54095147,110270.0,110260.0,0.15935681]
[1757205045228,0.54293147,110270.0,110260.0,0.15935681]
[1757205046422,0.54290747,110270.0,110260.0,0.15935681]
[1757205067210,0.31893384,110270.0,110260.0,0.15935681]
[1757205067560,0.48075235,110270.0,110260.0,0.15935681]
[1757205067766,0.50030683,110270.0,110260.0,0.15935681]
[1757205084434,0.18140589,110250.0,110240.0,0.06964]
[1757205084662,0.18140589,110250.0,110240.0,0.31377281]
[1757205084881,0.18140589,110250.0,110240.0,0.34100465]
[1757205085093,0.18140589,110250.0,110240.0,0.34408465]
[1757205085929,0.18140589,110250.0,110240.0,0.35208465]
[1757205086552,0.18140589,110250.0,110240.0,0.37302347]
[1757205089521,0.13503517,110260.0,110240.0,0.37302347]
[1757205089698,0.18140589,110250.0,110240.0,0.27802748]
[1757205089941,0.18140589,110250.0,110240.0,0.36994347]
[1757205090341,0.18140589,110250.0,110240.0,0.37302347]
[1757205090661,0.18140589,110250.0,110240.0,0.37002347]
[1757205090872,0.18140589,110250.0,110240.0,0.37302347]
[1757205091476,0.18140589,110250.0,110240.0,0.37002347]
[1757205091777,0.18140589,110250.0,110240.0,0.37302347]
[1757205096397,0.18140589,110250.0,110240.0,0.20200465]
[1757205096631,0.18140589,110250.0,110240.0,0.32485281]
[1757205104931,0.18140589,110250.0,110240.0,0.27485281]
[1757205110895,0.18140589,110250.0,110240.0,0.30208673]
[1757205114870,0.18140589,110250.0,110240.0,0.28244673]
[1757205151445,0.18140589,110250.0,110240.0,0.13236673]
[1757205151651,0.18140589,110250.0,110240.0,0.28244673]
[1757205165359,0.18335589,110250.0,110240.0,0.28244673]
[1757205166445,0.18140589,110250.0,110240.0,0.28244673]
[1757205182119,0.13503517,110260.0,110250.0,0.02093882]
[1757205182337,0.13503517,110260.0,110250.0,0.18672238]
[1757205182545,0.13503517,110260.0,110250.0,0.3688407]
[1757205183422,0.13503517,110260.0,110250.0,0.39907106]
[1757205183635,0.19044163,110270.0,110260.0,0.18138944]
[1757205183848,0.18137299,110270.0,110260.0,0.44950425]
[1757205184282,0.18137299,110270.0,110260.0,0.29534238]
[1757205184918,0.18137299,110270.0,110260.0,0.29734238]
[1757205185340,0.18137299,110270.0,110260.0,0.29834238]
[1757205185585,0.18137299,110270.0,110260.0,0.14802238]
[1757205185808,0.18137299,110270.0,110260.0,0.29834238]
[1757205186024,0.18137299,110270.0,110260.0,0.14802238]
[1757205186263,0.18137299,110270.0,110260.0,0.27740356]
[1757205186687,0.18137299,110270.0,110260.0,0.12708356]
[1757205186926,0.18137299,110270.0,110260.0,0.27748356]
[1757205187392,0.18137299,110270.0,110260.0,0.12708356]
[1757205187616,0.18137299,110270.0,110260.0,0.27748356]
[1757205194652,0.18137299,110270.0,110260.0,0.27740356]
[1757205195944,0.18335299,110270.0,110260.0,0.27744356]
[1757205197406,0.18137299,110270.0,110260.0,0.27744356]
[1757205201116,0.18137299,110270.0,110260.0,0.25021599]
[1757205205430,0.18335299,110270.0,110260.0,0.25021599]
[1757205205663,0.18335299,110270.0,110260.0,0.00794]
[1757205205834,0.18335299,110270.0,110260.0,0.15834]
[1757205206802,0.14771906,110280.0,110260.0,0.15834]
[1757205207218,0.1814002,110270.0,110260.0,0.15834]
[1757205207893,0.1814002,110270.0,110260.0,0.15734]
[1757205208142,0.1814002,110270.0,110260.0,0.15634]
[1757205208552,0.1814002,110270.0,110260.0,0.15534]
[1757205208749,0.1814002,110270.0,110260.0,0.15634]
[1757205209768,0.1814002,110270.0,110260.0,0.15834]
[1757205210246,0.1814002,110270.0,110260.0,0.15634]
[1757205210669,0.1814002,110270.0,110260.0,0.15834]
[1757205211378,0.1814002,110270.0,110260.0,0.15834]
[1757205212618,0.1823602,110270.0,110260.0,0.00598]
[1757205212833,0.5223602,110270.0,110260.0,0.15356]
[1757205213052,0.54188765,110270.0,110260.0,0.15356]
[1757205214666,0.54188765,110270.0,110260.0,0.003]
[1757205214869,0.54188765,110270.0,110260.0,0.15356]
[1757205215533,0.54192333,110270.0,110260.0,0.15356]
[1757205222035,0.54096333,110270.0,110260.0,0.15883]
[1757205223085,0.54192333,110270.0,110260.0,0.15883]
[1757205223292,0.54096333,110270.0,110260.0,0.15883]
[1757205227063,0.54192333,110270.0,110260.0,0.15883]
[1757205227199,0.54192333,110270.0,110260.0,0.15679]
[1757205232192,0.54192333,110270.0,110260.0,0.15883]
[1757205238649,0.5223602,110270.0,110260.0,0.15883]
[1757205238863,0.54193455,110270.0,110260.0,0.15883]
[1757205240124,0.54193455,110270.0,110260.0,0.15679]
[1757205242203,0.54193455,110270.0,110260.0,0.00623]
[1757205243013,0.54193455,110270.0,110260.0,0.003]
[1757205261547,0.5691677,110270.0,110260.0,0.003]
[1757205267252,0.56917854,110270.0,110260.0,0.003]
[1757205281188,0.34506011,110270.0,110260.0,0.003]
[1757205281393,0.32547492,110270.0,110260.0,0.003]
[1757205281589,0.50687512,110270.0,110260.0,0.003]
[1757205281792,0.52646031,110270.0,110260.0,0.003]
[1757205310615,0.67682031,110270.0,110260.0,0.00593]
[1757205311018,0.67682031,110270.0,110260.0,0.00809]
[1757205323189,0.67586031,110270.0,110260.0,0.00809]
[1757205324494,0.67682031,110270.0,110260.0,0.00809]
[1757205326134,0.67682233,110270.0,110260.0,0.00809]
[1757205331844,0.67682233,110270.0,110260.0,0.00593]
[1757205333764,0.67682689,110270.0,110260.0,0.00593]
[1757205340736,0.67682689,110270.0,110260.0,0.00798]
[1757205345725,0.67586689,110270.0,110260.0,0.00798]
[1757205347383,0.67682689,110270.0,110260.0,0.00798]
[1757205349583,0.67586689,110270.0,110260.0,0.00798]
[1757205349895,0.67682689,110270.0,110260.0,0.00798]
[1757205359760,0.52550689,110270.0,110260.0,0.00798]
[1757205359978,0.67574689,110270.0,110260.0,0.00798]
[1757205369108,0.67670689,110270.0,110260.0,0.00798]
[1757205369488,0.37942512,110270.0,110260.0,0.00798]
[1757205369707,0.35983335,110270.0,110260.0,0.00798]
[1757205373599,0.69983335,110270.0,110260.0,0.00798]
[1757205373801,0.71942512,110270.0,110260.0,0.00798]
[1757205381830,0.71846512,110270.0,110260.0,0.00798]
[1757205385379,0.71942512,110270.0,110260.0,0.00798]
[1757205401798,0.53802492,110270.0,110260.0,0.00798]
[1757205401978,0.71939791,110270.0,110260.0,0.00798]
[1757205402599,0.56915791,110270.0,110260.0,0.00798]
[1757205402754,0.71843791,110270.0,110260.0,0.00798]
[1757205409855,0.71843791,110270.0,110260.0,0.03521316]
[1757205411811,0.56819791,110270.0,110260.0,0.03521316]
[1757205412019,0.20096476,110270.0,110260.0,0.03521316]
[1757205412228,0.18137299,110270.0,110260.0,0.03521316]
[1757205417349,0.18137299,110270.0,110260.0,0.34696915]
[1757205427684,0.18137299,110270.0,110260.0,0.35588328]
[1757205428208,0.18137299,110270.0,110260.0,0.34696915]
[1757205429235,0.52137299,110270.0,110260.0,0.52835859]
[1757205430829,0.52137299,110270.0,110260.0,0.53752523]
[1757205432549,0.52137299,110270.0,110260.0,0.52835859]
[1757205434985,0.52137299,110270.0,110260.0,0.53723403]
[1757205436198,0.52137299,110270.0,110260.0,0.52835859]
[1757205438779,0.52135654,110280.0,110270.0,0.18137299]
[1757205439007,0.52135654,110280.0,110270.0,0.27524898]
[1757205439222,0.52135654,110280.0,110270.0,0.27825898]
[1757205439422,0.52135654,110280.0,110270.0,0.30548655]
[1757205440381,0.52135654,110280.0,110270.0,0.31048655]
[1757205441012,0.52135654,110280.0,110270.0,0.30848655]
[1757205441209,0.52135654,110280.0,110270.0,0.31148655]
[1757205444127,0.19043627,110290.0,110270.0,0.31148655]
[1757205444351,0.18135654,110280.0,110270.0,0.30847655]
[1757205444566,0.18135654,110280.0,110270.0,0.43160898]
[1757205444778,0.18135654,110280.0,110270.0,0.46184566]
[1757205444989,0.18135654,110280.0,110270.0,0.45884566]
[1757205446253,0.18135654,110280.0,110270.0,0.46084566]
[1757205446662,0.18135654,110280.0,110270.0,0.45784566]
[1757205446880,0.18135654,110280.0,110270.0,0.45584566]
[1757205447088,0.18135654,110280.0,110270.0,0.45984566]
[1757205447300,0.18135654,110280.0,110270.0,0.45784566]
[1757205447719,0.18135654,110280.0,110270.0,0.45984566]
[1757205463190,0.52135654,110280.0,110270.0,0.45984566]
[1757205469141,0.18135654,110280.0,110270.0,0.45984566]
[1757205475057,0.15958373,110290.0,110270.0,0.45984566]
[1757205475264,0.18135654,110280.0,110270.0,0.45683566]
[1757205475505,0.18135654,110280.0,110270.0,0.43271898]
[1757205475682,0.18135654,110280.0,110270.0,0.45994565]
[1757205476034,0.18135654,110280.0,110270.0,0.45794565]
[1757205476210,0.18135654,110280.0,110270.0,0.45994565]
[1757205476670,0.18135654,110280.0,110270.0,0.45794565]
[1757205477080,0.18135654,110280.0,110270.0,0.45994565]
[1757205477698,0.18135654,110280.0,110270.0,0.52958565]
[1757205480475,0.18135654,110280.0,110270.0,0.37922565]
[1757205480705,0.18135654,110280.0,110270.0,0.52962565]
[1757205483428,0.16262872,110290.0,110270.0,0.52962565]
[1757205483646,0.18135654,110280.0,110270.0,0.52651565]
[1757205483849,0.18135654,110280.0,110270.0,0.49928898]
[1757205484280,0.18135654,110280.0,110270.0,0.52962528]
[1757205485789,0.18135654,110280.0,110270.0,0.52762528]
[1757205486212,0.18135654,110280.0,110270.0,0.52962528]
[1757205486642,0.18135654,110280.0,110270.0,0.52762528]
[1757205487046,0.18135654,110280.0,110270.0,0.52962528]
[1757205499539,0.18135654,110280.0,110270.0,0.34825229]
[1757205522317,0.18135654,110280.0,110270.0,0.19785229]
[1757205522533,0.18135654,110280.0,110270.0,0.34805229]
[1757205580817,0.18135654,110280.0,110270.0,0.19785229]
[1757205581028,0.18135654,110280.0,110270.0,0.34805229]
[1757205593822,0.18135654,110280.0,110270.0,0.36899111]
[1757205594739,0.18135513,110290.0,110270.0,0.36899111]
[1757205594940,0.18135654,110280.0,110270.0,0.36588111]
[1757205595207,0.18135654,110280.0,110270.0,0.33865481]
[1757205595670,0.18135654,110280.0,110270.0,0.36903112]
[1757205596123,0.18135654,110280.0,110270.0,0.36703112]
[1757205596350,0.18135654,110280.0,110270.0,0.36903112]
[1757205596805,0.18135654,110280.0,110270.0,0.36503112]
[1757205597007,0.18135654,110280.0,110270.0,0.36703112]
[1757205597611,0.18135654,110280.0,110270.0,0.36903112]
[1757205604046,0.34,110280.0,110270.0,0.36903112]
[1757205604178,0.52135654,110280.0,110270.0,0.36903112]
[1757205618547,0.32934598,110280.0,110270.0,0.36903112]
[1757205620072,0.18135654,110280.0,110270.0,0.55040411]
[1757205620273,0.18135654,110280.0,110270.0,0.36903112]
[1757205620815,0.13930155,110290.0,110270.0,0.36903112]
[1757205621017,0.18135654,110280.0,110270.0,0.36588112]
[1757205621257,0.18135654,110280.0,110270.0,0.33865481]
[1757205621384,0.18135654,110280.0,110270.0,0.36588112]
[1757205621755,0.18135654,110280.0,110270.0,0.36683112]
[1757205621966,0.18135654,110280.0,110270.0,0.36883112]
[1757205622488,0.18135654,110280.0,110270.0,0.36683112]
[1757205622769,0.18135654,110280.0,110270.0,0.36883112]
[1757205627057,0.18135654,110280.0,110270.0,0.55020411]
[1757205627422,0.18135654,110280.0,110270.0,0.36883112]
[1757205628808,0.18135654,110280.0,110270.0,0.55020411]
[1757205629551,0.18135654,110280.0,110270.0,0.36883112]
[1757205634762,0.18135654,110280.0,110270.0,0.55020411]
[1757205638781,0.18135654,110280.0,110270.0,0.40000411]
[1757205639081,0.18135654,110280.0,110270.0,0.55016411]
[1757205654933,0.13930155,110290.0,110280.0,0.02093882]
[1757205655136,0.13930155,110290.0,110280.0,0.13578489]
[1757205655488,0.13930155,110290.0,110280.0,0.16300957]
[1757205655907,0.13930155,110290.0,110280.0,0.34436611]
[1757205656077,0.13930155,110290.0,110280.0,0.34209916]
[1757205656706,0.13930155,110290.0,110280.0,0.34309916]
[1757205656907,0.13930155,110290.0,110280.0,0.34409916]
[1757205657353,0.13930155,110290.0,110280.0,0.32852603]
[1757205665138,0.47930155,110290.0,110280.0,0.14716949]
[1757205665344,0.47930155,110290.0,110280.0,0.14943644]
[1757205668994,0.47930155,110290.0,110280.0,0.29959644]
[1757205669216,0.47930155,110290.0,110280.0,0.29732949]
[1757205673889,0.47930155,110290.0,110280.0,0.14716949]
[1757205674021,0.47930155,110290.0,110280.0,0.29959644]
[1757205674221,0.47930155,110290.0,110280.0,0.29732949]
[1757205679064,0.47930155,110290.0,110280.0,0.36696949]
[1757205686513,0.47930155,110290.0,110280.0,0.54832603]
[1757205686716,0.5213401,110290.0,110280.0,0.54832603]
[1757205687398,0.34,110290.0,110280.0,0.54832603]
[1757205688498,0.19041898,110300.0,110290.0,0.1813401]
[1757205688773,0.18132366,110300.0,110290.0,0.27640609]
[1757205688995,0.18132366,110300.0,110290.0,0.29944491]
[1757205689202,0.52132366,110300.0,110290.0,0.29944491]
[1757205689635,0.52132366,110300.0,110290.0,0.32666679]
[1757205689822,0.52132366,110300.0,110290.0,0.32766679]
[1757205690229,0.52132366,110300.0,110290.0,0.32666679]
[1757205690374,0.52132366,110300.0,110290.0,0.32866679]
[1757205691041,0.52132366,110300.0,110290.0,0.47878679]
[1757205691593,0.52132366,110300.0,110290.0,0.48078679]
[1757205698805,0.52132366,110300.0,110290.0,0.33066679]
[1757205699020,0.52132366,110300.0,110290.0,0.48078679]
[1757205704434,0.52132366,110300.0,110290.0,0.29944669]
[1757205710845,0.52132366,110300.0,110290.0,0.14932669]
[1757205711054,0.52132366,110300.0,110290.0,0.30171344]
[1757205711256,0.52132366,110300.0,110290.0,0.29944669]
[1757205720391,0.52132366,110300.0,110290.0,0.48078679]
[1757205720615,0.52132366,110300.0,110290.0,0.29944669]
[1757205722362,0.52132366,110300.0,110290.0,0.48078679]
[1757205725092,0.52132366,110300.0,110290.0,0.48078679]
[1757205730360,0.52132366,110300.0,110290.0,0.29944669]
[1757205735439,0.29808099,110300.0,110290.0,0.29944669]
[1757205737288,0.18132366,110300.0,110290.0,0.29944669]
[1757205738079,0.18132366,110300.0,110290.0,0.36904669]
[1757205743547,0.19939656,110310.0,110300.0,0.02093882]
[1757205743780,0.19046034,110310.0,110300.0,0.12038135]
[1757205744246,0.18135402,110310.0,110300.0,0.32892455]
[1757205744468,0.18135402,110310.0,110300.0,0.32665801]
[1757205745309,0.18135402,110310.0,110300.0,0.32765801]
[1757205745698,0.18135402,110310.0,110300.0,0.14633435]
[1757205745902,0.18135402,110310.0,110300.0,0.14860089]
[1757205747985,0.18135402,110310.0,110300.0,0.29872089]
[1757205748198,0.18135402,110310.0,110300.0,0.29645435]
[1757205753523,0.18135402,110310.0,110300.0,0.47777801]
[1757205753884,0.18135402,110310.0,110300.0,0.47773801]
[1757205755082,0.18135402,110310.0,110300.0,0.29641435]
[1757205755295,0.18135402,110310.0,110300.0,0.14633435]
[1757205755483,0.18135402,110310.0,110300.0,0.48000455]
[1757205755624,0.18135402,110310.0,110300.0,0.47773801]
[1757205756246,0.18135402,110310.0,110300.0,0.29641435]
[1757205756447,0.18135402,110310.0,110300.0,0.47773801]
[1757205758064,0.18135402,110310.0,110300.0,0.29641435]
[1757205758259,0.18135402,110310.0,110300.0,0.14633435]
[1757205758464,0.18135402,110310.0,110300.0,0.29641435]
[1757205761239,0.18135402,110310.0,110300.0,0.14633435]
[1757205761441,0.18135402,110310.0,110300.0,0.29641435]
[1757205762774,0.18135402,110310.0,110300.0,0.29645435]
[1757205763633,0.18135402,110310.0,110300.0,0.54645435]
[1757205765323,0.18135402,110310.0,110300.0,0.54439435]
[1757205765531,0.18231402,110310.0,110300.0,0.54413435]
[1757205765764,0.18231402,110310.0,110300.0,0.54622435]
[1757205766180,0.18135402,110310.0,110300.0,0.54622435]
[1757205771669,0.18135402,110310.0,110300.0,0.61582435]
[1757205774796,0.18135402,110310.0,110300.0,0.46574435]
[1757205774977,0.18135402,110310.0,110300.0,0.61582435]
[1757205798708,0.18135402,110310.0,110300.0,0.61373435]
[1757205798916,0.18231402,110310.0,110300.0,0.61075435]
[1757205799117,0.18231402,110310.0,110300.0,0.61582435]
[1757205799528,0.18135402,110310.0,110300.0,0.61582435]
[1757205805847,0.18130722,110310.0,110300.0,0.61582435]
[1757205809149,0.52286722,110310.0,110300.0,0.40204]
[1757205809397,0.55008846,110310.0,110300.0,0.40204]
[1757205809828,0.54948846,110310.0,110300.0,0.40204]
[1757205817517,0.54948846,110310.0,110300.0,0.40735]
[1757205817937,0.54948846,110310.0,110300.0,0.40522]
[1757205818140,0.54948846,110310.0,110300.0,0.40204]
[1757205818746,0.54948846,110310.0,110300.0,0.47164]
[1757205820769,0.54948846,110310.0,110300.0,0.49575882]
[1757205821602,0.54948846,110310.0,110300.0,0.49788882]
[1757205824952,0.52130722,110310.0,110300.0,0.58980481]
[1757205835866,0.52226722,110310.0,110300.0,0.58791481]
[1757205836094,0.52226722,110310.0,110300.0,0.59004481]
[1757205837491,0.52226722,110310.0,110300.0,0.43876481]
[1757205837657,0.52226722,110310.0,110300.0,0.58481481]
[1757205838797,0.52226722,110310.0,110300.0,0.58799481]
[1757205841512,0.52130722,110310.0,110300.0,0.59012481]
[1757205843399,0.52226722,110310.0,110300.0,0.59012481]
[1757205844649,0.52130722,110310.0,110300.0,0.59012481]
[1757205846733,0.52226722,110310.0,110300.0,0.59012481]
[1757205846952,0.52130722,110310.0,110300.0,0.59012481]
[1757205847572,0.52226722,110310.0,110300.0,0.59012481]
[1757205848219,0.52130722,110310.0,110300.0,0.59012481]
[1757205854151,0.52130722,110310.0,110300.0,0.56918599]
[1757205859841,0.52130722,110310.0,110300.0,0.59012481]
[1757205869419,0.18130722,110310.0,110300.0,0.59012481]
[1757205870040,0.18130722,110310.0,110300.0,0.62627191]
[1757205871608,0.25075609,110320.0,110300.0,0.80759557]
[1757205871819,0.25075609,110320.0,110310.0,0.24870233]
[1757205872034,0.25075609,110320.0,110310.0,0.24643599]
[1757205872240,0.25075609,110320.0,110310.0,0.27578079]
[1757205872898,0.25075609,110320.0,110310.0,0.52578079]
[1757205873524,0.25075609,110320.0,110310.0,0.52678079]
[1757205873928,0.25075609,110320.0,110310.0,0.52878079]
[1757205876177,0.25075609,110320.0,110310.0,0.56860195]
[1757205876385,0.25075609,110320.0,110310.0,0.56852195]
[1757205881224,0.20041192,110330.0,110320.0,0.02093882]
[1757205881429,0.20045873,110330.0,110320.0,0.12013094]
[1757205881839,0.20045873,110330.0,110320.0,0.1473447]
[1757205882720,0.20045873,110330.0,110320.0,0.3973447]
[1757205882920,0.20045873,110330.0,110320.0,0.39507857]
[1757205889569,0.20045873,110330.0,110320.0,0.46467857]
[1757205906970,0.20045873,110330.0,110320.0,0.61555857]
[1757205907213,0.20045873,110330.0,110320.0,0.61559857]
[1757205914056,0.18855167,110330.0,110320.0,0.46467857]
[1757205914254,0.18855167,110330.0,110320.0,0.61595857]
[1757205915300,0.18855167,110330.0,110320.0,0.46467857]
[1757205915533,0.18855167,110330.0,110320.0,0.61595857]
[1757205918949,0.18855167,110330.0,110320.0,0.61591857]
[1757205920442,0.18855167,110330.0,110320.0,0.46467857]
[1757205920687,0.18855167,110330.0,110320.0,0.61591857]
[1757205980318,0.18855167,110330.0,110320.0,0.61591857]
[1757205980528,0.18129948,110330.0,110320.0,0.61591857]
[1757205980708,0.19036319,110330.0,110320.0,0.61591857]
[1757205987195,0.53132319,110330.0,110320.0,0.61090857]
[1757205987411,0.53132319,110330.0,110320.0,0.61589857]
[1757205987640,0.53036319,110330.0,110320.0,0.61589857]
[1757206006873,0.53132319,110330.0,110320.0,0.61026857]
[1757206007284,0.53132319,110330.0,110320.0,0.61233857]
[1757206007491,0.53132319,110330.0,110320.0,0.61551857]
[1757206010000,0.53036319,110330.0,110320.0,0.61551857]
[1757206012562,0.53132319,110330.0,110320.0,0.61026857]
[1757206013196,0.53132319,110330.0,110320.0,0.61344857]
[1757206013439,0.53132319,110330.0,110320.0,0.61551857]
[1757206013756,0.53036319,110330.0,110320.0,0.61551857]
[1757206057812,0.19036319,110330.0,110320.0,0.61551857]
[1757206061513,0.19132319,110330.0,110320.0,0.46491857]
[1757206061729,0.53192319,110330.0,110320.0,0.58301481]
[1757206061943,0.55757845,110330.0,110320.0,0.58834481]
[1757206063027,0.55853845,110330.0,110320.0,0.58834481]
[1757206069280,0.55853845,110330.0,110320.0,0.58619481]
[1757206073019,0.55853845,110330.0,110320.0,0.56525599]
[1757206078387,0.55853845,110330.0,110320.0,0.56740599]
[1757206079200,0.55757845,110330.0,110320.0,0.56740599]
[1757206079624,0.55853845,110330.0,110320.0,0.56740599]
[1757206083033,0.55757845,110330.0,110320.0,0.56740599]
[1757206083840,0.55853845,110330.0,110320.0,0.56740599]
[1757206094793,0.34182285,110330.0,110320.0,0.56740599]
[1757206095777,0.53218604,110330.0,110320.0,0.56740599]
[1757206100696,0.53122604,110330.0,110320.0,0.56740599]
[1757206101493,0.53218604,110330.0,110320.0,0.56740599]
[1757206101905,0.53218604,110330.0,110320.0,0.56525599]
[1757206108386,0.50497078,110330.0,110320.0,0.56525599]
[1757206109920,0.50497078,110330.0,110320.0,0.56724599]
[1757206110747,0.53218605,110330.0,110320.0,0.56724599]
[1757206111349,0.53218605,110330.0,110320.0,0.56525599]
[1757206119741,0.53218605,110330.0,110320.0,0.56207599]
[1757206120545,0.53218605,110330.0,110320.0,0.56531599]
[1757206123669,0.53218605,110330.0,110320.0,0.56728599]
[1757206127292,0.53122605,110330.0,110320.0,0.56728599]
[1757206127500,0.53218605,110330.0,110320.0,0.56728599]
[1757206130337,0.53122605,110330.0,110320.0,0.56728599]
[1757206130772,0.53122605,110330.0,110320.0,0.43766481]
[1757206130979,0.53122605,110330.0,110320.0,0.58842481]
[1757206130980,0.50401078,110330.0,110320.0,0.58842481]
[1757206131539,0.50401078,110330.0,110320.0,0.61563755]
[1757206143984,0.50497078,110330.0,110320.0,0.61563755]
[1757206144344,0.50497078,110330.0,110320.0,0.61366755]
[1757206144542,0.50497078,110330.0,110320.0,0.61563755]
[1757206144696,0.50401078,110330.0,110320.0,0.58842481]
[1757206144994,0.50401078,110330.0,110320.0,0.61563829]
[1757206156475,0.50401078,110330.0,110320.0,0.58842481]
[1757206168871,0.19036319,110330.0,110320.0,0.58842481]
[1757206223300,0.19036319,110330.0,110320.0,0.6156383]
[1757206225165,0.19036319,110330.0,110320.0,0.6156383]
[1757206238280,0.20869354,110340.0,110320.0,0.6156383]
[1757206238483,0.54869354,110340.0,110330.0,0.15402]
[1757206238680,0.54965354,110340.0,110330.0,0.15402]
[1757206238921,0.54965354,110340.0,110330.0,0.40402]
[1757206240657,0.55065354,110340.0,110330.0,0.40402]
[1757206241041,0.55165354,110340.0,110330.0,0.40402]
[1757206241627,0.55165354,110340.0,110330.0,0.47362]
[1757206246491,0.34010303,110340.0,110330.0,0.47557]
[1757206246703,0.34820592,110340.0,110330.0,0.56748599]
[1757206246909,0.52947886,110340.0,110330.0,0.56748599]
[1757206247108,0.52947886,110340.0,110330.0,0.59469874]
[1757206251329,0.52747886,110340.0,110330.0,0.59469874]
[1757206252255,0.52747886,110340.0,110330.0,0.56748599]
[1757206252493,0.55469092,110340.0,110330.0,0.56748599]
[1757206252705,0.55469092,110340.0,110330.0,0.56848599]
[1757206254810,0.55469092,110340.0,110330.0,0.57048599]
[1757206273157,0.21754789,110340.0,110330.0,0.57048599]
[1757206274911,0.21850789,110340.0,110330.0,0.56853599]
[1757206275473,0.21850789,110340.0,110330.0,0.57054599]
[1757206275883,0.21754789,110340.0,110330.0,0.57054599]
[1757206293063,0.55754789,110340.0,110330.0,0.57054599]
[1757206298422,0.55754789,110340.0,110330.0,0.41962599]
[1757206298656,0.55754789,110340.0,110330.0,0.57022599]
[1757206306025,0.21754789,110340.0,110330.0,0.57022599]
[1757206310866,0.21754789,110340.0,110330.0,0.58525546]
[1757206311357,0.55754789,110340.0,110330.0,0.57022599]
[1757206312331,0.55754789,110340.0,110330.0,0.57038599]
[1757206315840,0.36721206,110340.0,110330.0,0.57038599]
[1757206316183,0.548485,110340.0,110330.0,0.57038599]
[1757206316759,0.55754789,110340.0,110330.0,0.57038599]
[1757206345822,0.19033583,110340.0,110330.0,0.59132481]
[1757206346033,0.19033583,110340.0,110330.0,0.61853349]
[1757206348481,0.18125793,110340.0,110330.0,0.79980784]
[1757206349306,0.18125793,110340.0,110330.0,0.79880784]
[1757206349864,0.18125793,110340.0,110330.0,0.80280784]
[1757206350078,0.18125793,110340.0,110330.0,0.80080784]
[1757206350279,1.1921636,110350.0,110330.0,0.80080784]
[1757206350505,1.1921636,110350.0,110340.0,0.24584599]
[1757206350506,1.19221041,110350.0,110340.0,0.24584599]
[1757206350725,1.19221041,110350.0,110340.0,0.24796599]
[1757206351705,1.19221041,110350.0,110340.0,0.27517052]
[1757206351934,1.19221041,110350.0,110340.0,0.52517052]
[1757206352765,1.19221041,110350.0,110340.0,0.52717052]
[1757206353178,1.19221041,110350.0,110340.0,0.52917052]
[1757206355329,1.19221041,110350.0,110340.0,0.56912334]
[1757206357764,1.19221041,110350.0,110340.0,0.83562334]
[1757206365105,1.19221041,110350.0,110340.0,0.83550334]
[1757206383150,1.19221041,110350.0,110340.0,0.90510334]
[1757206388210,0.988323,110350.0,110340.0,0.90510334]